[Event "Early-Titled-Tuesday-Blitz-August-29-2023"]
[Site "Chess.com"]
[Date "2023.08.29"]
[Round "7"]
[White "Vuk2000"]
[Black "AndreiITrifan"]
[Result "1-0"]
[WhiteElo "2747"]
[BlackElo "2573"]
[TimeControl "180+1"]
[EndTime "9:16:30 PDT"]
[Termination "Vuk2000 won on time"]

1. d4 {[%clk 0:03:00.9]} 1... Nf6 {[%clk 0:02:59.2]} 2. Bg5 {[%clk 0:02:59.8]}
2... e6 {[%clk 0:02:54.5]} 3. e4 {[%clk 0:02:59.6]} 3... h6 {[%clk 0:02:54]} 4.
Bxf6 {[%clk 0:02:59.7]} 4... Qxf6 {[%clk 0:02:54.9]} 5. c3 {[%clk 0:03:00.3]}
5... d6 {[%clk 0:02:51.4]} 6. Bd3 {[%clk 0:03:00.1]} 6... Nd7 {[%clk 0:02:46.6]}
7. Ne2 {[%clk 0:03:00.1]} 7... Be7 {[%clk 0:02:43.3]} 8. O-O {[%clk 0:02:57.8]}
8... e5 {[%clk 0:02:42.6]} 9. f4 {[%clk 0:02:56.6]} 9... exd4 {[%clk 0:02:42.5]}
10. cxd4 {[%clk 0:02:55.6]} 10... O-O {[%clk 0:02:38.4]} 11. Nbc3 {[%clk
0:02:40.9]} 11... Nb6 {[%clk 0:02:14.4]} 12. e5 {[%clk 0:02:20.6]} 12... dxe5
{[%clk 0:02:15.3]} 13. fxe5 {[%clk 0:02:19.4]} 13... Qc6 {[%clk 0:02:10]} 14.
Be4 {[%clk 0:02:08.9]} 14... Qc4 {[%clk 0:01:53.7]} 15. b3 {[%clk 0:02:07.1]}
15... Qa6 {[%clk 0:01:52.9]} 16. Nf4 {[%clk 0:01:20.3]} 16... c6 {[%clk
0:01:27.6]} 17. Qf3 {[%clk 0:01:04.8]} 17... Bg5 {[%clk 0:01:10.6]} 18. Nd3
{[%clk 0:00:47.1]} 18... Be7 {[%clk 0:00:51.8]} 19. Rad1 {[%clk 0:00:31.6]}
19... Be6 {[%clk 0:00:45.1]} 20. Nf4 {[%clk 0:00:31.5]} 20... Bd7 {[%clk
0:00:16]} 21. Bd3 {[%clk 0:00:30.8]} 21... Qa5 {[%clk 0:00:15.2]} 22. Qe4 {[%clk
0:00:31.1]} 22... f5 {[%clk 0:00:05.1]} 23. exf6 {[%clk 0:00:30.5]} 23... Bxf6
{[%clk 0:00:05.6]} 24. Qh7+ {[%clk 0:00:12.7]} 24... Kf7 {[%clk 0:00:06.1]} 25.
Rde1 {[%clk 0:00:13.4]} 25... Rg8 {[%clk 0:00:03.5]} 26. Bg6+ {[%clk 0:00:11.6]}
26... Kf8 {[%clk 0:00:03.7]} 27. Ne4 {[%clk 0:00:12.1]} 1-0

[Event "Early-Titled-Tuesday-Blitz-August-29-2023"]
[Site "Chess.com"]
[Date "2023.08.29"]
[Round "7"]
[White "LangesNasenhaar"]
[Black "valemava"]
[Result "1-0"]
[WhiteElo "2469"]
[BlackElo "2321"]
[TimeControl "180+1"]
[EndTime "9:16:35 PDT"]
[Termination "LangesNasenhaar won on time"]

1. d4 {[%clk 0:03:00.9]} 1... d5 {[%clk 0:02:57.1]} 2. Nc3 {[%clk 0:03:00.9]}
2... e6 {[%clk 0:02:53.1]} 3. e4 {[%clk 0:03:00.2]} 3... dxe4 {[%clk 0:02:54]}
4. Nxe4 {[%clk 0:03:00.1]} 4... Nf6 {[%clk 0:02:54.5]} 5. Nxf6+ {[%clk
0:02:58.3]} 5... Qxf6 {[%clk 0:02:55.4]} 6. g3 {[%clk 0:02:58.4]} 6... Nc6
{[%clk 0:02:53.5]} 7. Nf3 {[%clk 0:02:57.6]} 7... h6 {[%clk 0:02:53.4]} 8. Bg2
{[%clk 0:02:57.6]} 8... Bd6 {[%clk 0:02:52.6]} 9. O-O {[%clk 0:02:57.1]} 9...
O-O {[%clk 0:02:52.6]} 10. b3 {[%clk 0:02:55.6]} 10... e5 {[%clk 0:02:52.4]} 11.
Bb2 {[%clk 0:02:54]} 11... Bg4 {[%clk 0:02:47.4]} 12. h3 {[%clk 0:02:42.4]}
12... Bxf3 {[%clk 0:02:44.8]} 13. Qxf3 {[%clk 0:02:38.3]} 13... Qg6 {[%clk
0:02:20.4]} 14. dxe5 {[%clk 0:02:22.7]} 14... Nxe5 {[%clk 0:02:15.8]} 15. Qxb7
{[%clk 0:02:14.7]} 15... Qxc2 {[%clk 0:02:11.4]} 16. Rab1 {[%clk 0:01:30.8]}
16... Nd3 {[%clk 0:01:18.7]} 17. Bd4 {[%clk 0:01:18.6]} 17... c5 {[%clk
0:01:12.8]} 18. Be3 {[%clk 0:01:13.6]} 18... Rae8 {[%clk 0:01:00.3]} 19. Qf3
{[%clk 0:00:57.7]} 19... Qxa2 {[%clk 0:00:40.8]} 20. Qd5 {[%clk 0:00:57.5]}
20... Rd8 {[%clk 0:00:11.2]} 21. Qxd3 {[%clk 0:00:54]} 21... Bxg3 {[%clk
0:00:11.1]} 22. Qf5 {[%clk 0:00:41.4]} 22... Bd6 {[%clk 0:00:09]} 23. Be4 {[%clk
0:00:38.8]} 23... g6 {[%clk 0:00:08.7]} 24. Qf3 {[%clk 0:00:36.7]} 24... Rfe8
{[%clk 0:00:08.3]} 25. Bxh6 {[%clk 0:00:29.5]} 25... Qa6 {[%clk 0:00:04.5]} 26.
Bd5 {[%clk 0:00:28]} 26... Re7 {[%clk 0:00:03.3]} 27. Bg5 {[%clk 0:00:27.6]}
27... Rde8 {[%clk 0:00:02.6]} 28. Bxe7 {[%clk 0:00:27.5]} 28... Rxe7 {[%clk
0:00:03.5]} 29. Rfe1 {[%clk 0:00:27]} 29... Rd7 {[%clk 0:00:03.8]} 30. Qg4
{[%clk 0:00:24.5]} 30... Qc8 {[%clk 0:00:02.1]} 31. Qxg6+ {[%clk 0:00:21.7]}
31... Kf8 {[%clk 0:00:02.6]} 32. Qh6+ {[%clk 0:00:20.2]} 32... Kg8 {[%clk
0:00:02.6]} 33. Re4 {[%clk 0:00:15]} 1-0

[Event "Early-Titled-Tuesday-Blitz-August-29-2023"]
[Site "Chess.com"]
[Date "2023.08.29"]
[Round "7"]
[White "Andreikka"]
[Black "Arseniy_Nesterov"]
[Result "1-0"]
[WhiteElo "3034"]
[BlackElo "2873"]
[TimeControl "180+1"]
[EndTime "9:16:36 PDT"]
[Termination "Andreikka won by resignation"]

1. Nf3 {[%clk 0:02:53.6]} 1... d5 {[%clk 0:02:59.9]} 2. g3 {[%clk 0:02:53.7]}
2... Nf6 {[%clk 0:02:59]} 3. Bg2 {[%clk 0:02:54]} 3... g6 {[%clk 0:02:56.4]} 4.
b3 {[%clk 0:02:53.1]} 4... Bg7 {[%clk 0:02:56.6]} 5. Bb2 {[%clk 0:02:53]} 5...
O-O {[%clk 0:02:56.8]} 6. c4 {[%clk 0:02:53.3]} 6... c6 {[%clk 0:02:55.4]} 7. d3
{[%clk 0:02:49.6]} 7... Re8 {[%clk 0:02:52.4]} 8. O-O {[%clk 0:02:49.7]} 8...
Bg4 {[%clk 0:02:37.6]} 9. Nbd2 {[%clk 0:02:48.7]} 9... Nbd7 {[%clk 0:02:37.2]}
10. h3 {[%clk 0:02:48.7]} 10... Bxf3 {[%clk 0:02:33.8]} 11. Nxf3 {[%clk
0:02:49.6]} 11... Nh5 {[%clk 0:02:30.6]} 12. d4 {[%clk 0:02:42.3]} 12... Nhf6
{[%clk 0:02:28.5]} 13. Qc2 {[%clk 0:02:39]} 13... e6 {[%clk 0:02:26.2]} 14. Rfd1
{[%clk 0:02:33.1]} 14... a6 {[%clk 0:02:21.3]} 15. Ne1 {[%clk 0:02:26.5]} 15...
Rc8 {[%clk 0:02:12]} 16. Nd3 {[%clk 0:02:26]} 16... h5 {[%clk 0:02:06.9]} 17. e3
{[%clk 0:02:24.3]} 17... Qc7 {[%clk 0:02:06.2]} 18. Rac1 {[%clk 0:02:22.8]}
18... Qb8 {[%clk 0:01:58.2]} 19. a4 {[%clk 0:02:17.1]} 19... Rcd8 {[%clk
0:01:49.6]} 20. Bc3 {[%clk 0:02:07.6]} 20... Ne4 {[%clk 0:01:45.9]} 21. Be1
{[%clk 0:02:07]} 21... f5 {[%clk 0:01:45]} 22. b4 {[%clk 0:01:49.5]} 22... Nb6
{[%clk 0:01:23.8]} 23. cxd5 {[%clk 0:01:46.8]} 23... cxd5 {[%clk 0:01:15.6]} 24.
Qc7 {[%clk 0:01:35.7]} 24... Nxa4 {[%clk 0:00:57.1]} 25. Qa5 {[%clk 0:01:35.9]}
25... b5 {[%clk 0:00:51.8]} 26. Qxa6 {[%clk 0:01:36.4]} 26... Rd6 {[%clk
0:00:41.2]} 27. Rc6 {[%clk 0:01:36.1]} 27... Rxc6 {[%clk 0:00:22.1]} 28. Qxc6
{[%clk 0:01:35.8]} 28... Kf7 {[%clk 0:00:17]} 29. Rc1 {[%clk 0:01:34.5]} 29...
Nd6 {[%clk 0:00:09.7]} 30. Nf4 {[%clk 0:01:04.6]} 30... Qc8 {[%clk 0:00:04.9]}
31. Bxd5 {[%clk 0:00:25.6]} 31... exd5 {[%clk 0:00:03.5]} 32. Qxd5+ {[%clk
0:00:25.6]} 1-0

[Event "Early-Titled-Tuesday-Blitz-August-29-2023"]
[Site "Chess.com"]
[Date "2023.08.29"]
[Round "7"]
[White "OlaaLa"]
[Black "Ural_bogatyr"]
[Result "1-0"]
[WhiteElo "2443"]
[BlackElo "2544"]
[TimeControl "180+1"]
[EndTime "9:16:37 PDT"]
[Termination "OlaaLa won by checkmate"]

1. c4 {[%clk 0:03:00.9]} 1... Nf6 {[%clk 0:02:57.7]} 2. g3 {[%clk 0:02:59.4]}
2... e6 {[%clk 0:02:57.6]} 3. Bg2 {[%clk 0:02:59.3]} 3... d5 {[%clk 0:02:58.2]}
4. Qc2 {[%clk 0:02:53.4]} 4... Be7 {[%clk 0:02:47.8]} 5. Nf3 {[%clk 0:02:49.9]}
5... O-O {[%clk 0:02:48.3]} 6. O-O {[%clk 0:02:49.9]} 6... d4 {[%clk 0:02:48.1]}
7. d3 {[%clk 0:02:47.4]} 7... c5 {[%clk 0:02:47.8]} 8. a3 {[%clk 0:02:46.9]}
8... Nc6 {[%clk 0:02:46.7]} 9. e4 {[%clk 0:02:38]} 9... e5 {[%clk 0:02:42.7]}
10. h3 {[%clk 0:02:36.4]} 10... Be6 {[%clk 0:02:35.9]} 11. Ng5 {[%clk
0:02:35.1]} 11... Nd7 {[%clk 0:02:32.8]} 12. Nxe6 {[%clk 0:02:23.8]} 12... fxe6
{[%clk 0:02:33.7]} 13. f4 {[%clk 0:02:24.3]} 13... exf4 {[%clk 0:02:32.2]} 14.
gxf4 {[%clk 0:02:24.8]} 14... e5 {[%clk 0:02:31.5]} 15. f5 {[%clk 0:02:24.7]}
15... Bg5 {[%clk 0:02:29.7]} 16. Bxg5 {[%clk 0:02:22.6]} 16... Qxg5 {[%clk
0:02:30.6]} 17. Nd2 {[%clk 0:02:22.9]} 17... Kh8 {[%clk 0:02:27.7]} 18. Kh2
{[%clk 0:02:20.6]} 18... g6 {[%clk 0:02:24.6]} 19. fxg6 {[%clk 0:02:15.4]} 19...
Qxg6 {[%clk 0:02:18.6]} 20. Nf3 {[%clk 0:02:07.7]} 20... Rg8 {[%clk 0:02:15.2]}
21. Rg1 {[%clk 0:01:58.4]} 21... Qg3+ {[%clk 0:02:12.6]} 22. Kh1 {[%clk
0:01:58.8]} 22... Raf8 {[%clk 0:02:11.1]} 23. Raf1 {[%clk 0:01:58.8]} 23... Nf6
{[%clk 0:02:07.5]} 24. Nh2 {[%clk 0:01:47]} 24... Nh5 {[%clk 0:02:04.3]} 25.
Rxf8 {[%clk 0:01:36.9]} 25... Rxf8 {[%clk 0:02:01.5]} 26. Bf1 {[%clk 0:01:28.4]}
26... Qf2 {[%clk 0:01:50.2]} 27. Qxf2 {[%clk 0:01:14.8]} 27... Rxf2 {[%clk
0:01:51.1]} 28. Rg2 {[%clk 0:01:13.3]} 28... Rf8 {[%clk 0:01:44.5]} 29. Kg1
{[%clk 0:01:05.9]} 29... Nf4 {[%clk 0:01:42.5]} 30. Rg3 {[%clk 0:01:06.2]} 30...
h5 {[%clk 0:01:40.2]} 31. Nf3 {[%clk 0:01:04.3]} 31... Kh7 {[%clk 0:01:38.2]}
32. h4 {[%clk 0:01:03]} 32... Kh6 {[%clk 0:01:37.3]} 33. Ng5 {[%clk 0:00:28.8]}
33... Ng6 {[%clk 0:01:34.3]} 34. Nf3 {[%clk 0:00:27.3]} 34... Nd8 {[%clk
0:01:32]} 35. Bh3 {[%clk 0:00:25.9]} 35... Rf4 {[%clk 0:01:25.6]} 36. Bf5 {[%clk
0:00:23.6]} 36... Ne7 {[%clk 0:01:21.9]} 37. Nxe5 {[%clk 0:00:23.5]} 37... Nxf5
{[%clk 0:01:21.8]} 38. exf5 {[%clk 0:00:24]} 38... Rxf5 {[%clk 0:01:21.8]} 39.
Nd7 {[%clk 0:00:23]} 39... Ne6 {[%clk 0:01:18.6]} 40. Rg8 {[%clk 0:00:20.9]}
40... Rf4 {[%clk 0:01:16.2]} 41. Re8 {[%clk 0:00:17]} 41... Rg4+ {[%clk
0:01:04.1]} 42. Kf2 {[%clk 0:00:16.7]} 42... Nf4 {[%clk 0:01:04.8]} 43. Nxc5
{[%clk 0:00:13.4]} 43... Rxh4 {[%clk 0:01:04.2]} 44. Rd8 {[%clk 0:00:12.9]}
44... Ng6 {[%clk 0:01:01.7]} 45. Ne4 {[%clk 0:00:12.4]} 45... Ne5 {[%clk
0:01:00.2]} 46. Rd6+ {[%clk 0:00:12.2]} 46... Kg7 {[%clk 0:00:59.5]} 47. Ng3
{[%clk 0:00:12.6]} 47... Nxd3+ {[%clk 0:00:58.5]} 48. Ke2 {[%clk 0:00:13.2]}
48... Nf4+ {[%clk 0:00:58.6]} 49. Kf3 {[%clk 0:00:13.1]} 49... Rg4 {[%clk
0:00:58.1]} 50. Nf5+ {[%clk 0:00:13.6]} 50... Kf7 {[%clk 0:00:57.7]} 51. Rxd4
{[%clk 0:00:13.4]} 51... Kf6 {[%clk 0:00:55.5]} 52. Nd6 {[%clk 0:00:13.1]} 52...
Ne6 {[%clk 0:00:55.2]} 53. Ne4+ {[%clk 0:00:12.5]} 53... Ke5 {[%clk 0:00:54.9]}
54. Rd5# {[%clk 0:00:13.2]} 1-0

[Event "Early-Titled-Tuesday-Blitz-August-29-2023"]
[Site "Chess.com"]
[Date "2023.08.29"]
[Round "7"]
[White "bascheyaro"]
[Black "Vesper2018"]
[Result "1-0"]
[WhiteElo "2807"]
[BlackElo "2599"]
[TimeControl "180+1"]
[EndTime "9:16:42 PDT"]
[Termination "bascheyaro won by checkmate"]

1. d4 {[%clk 0:03:00.9]} 1... Nf6 {[%clk 0:02:59.4]} 2. Nf3 {[%clk 0:03:01]}
2... g6 {[%clk 0:03:00]} 3. c4 {[%clk 0:03:01.4]} 3... Bg7 {[%clk 0:03:00.5]} 4.
Bf4 {[%clk 0:03:01.8]} 4... O-O {[%clk 0:03:00]} 5. Nc3 {[%clk 0:03:02.3]} 5...
d5 {[%clk 0:02:57.2]} 6. c5 {[%clk 0:03:02.1]} 6... c6 {[%clk 0:02:51.4]} 7. h3
{[%clk 0:03:01.3]} 7... Ne4 {[%clk 0:02:50]} 8. e3 {[%clk 0:03:01.3]} 8... Nxc3
{[%clk 0:02:44.2]} 9. bxc3 {[%clk 0:03:01.4]} 9... Nd7 {[%clk 0:02:44.9]} 10.
Qb3 {[%clk 0:02:58]} 10... Re8 {[%clk 0:02:43.3]} 11. Ne5 {[%clk 0:02:55.5]}
11... Bxe5 {[%clk 0:02:16.1]} 12. Bxe5 {[%clk 0:02:56.4]} 12... Nxe5 {[%clk
0:02:16.1]} 13. dxe5 {[%clk 0:02:57.3]} 13... b6 {[%clk 0:02:09.1]} 14. Qb4
{[%clk 0:02:53.9]} 14... Qc7 {[%clk 0:01:54.5]} 15. f4 {[%clk 0:02:07.8]} 15...
f6 {[%clk 0:01:54.2]} 16. c4 {[%clk 0:02:08.3]} 16... fxe5 {[%clk 0:01:51.2]}
17. cxd5 {[%clk 0:02:08.4]} 17... cxd5 {[%clk 0:01:51.6]} 18. cxb6 {[%clk
0:02:07.4]} 18... axb6 {[%clk 0:01:44]} 19. Bb5 {[%clk 0:02:07.1]} 19... Rf8
{[%clk 0:01:41]} 20. O-O {[%clk 0:02:06.6]} 20... exf4 {[%clk 0:01:29.8]} 21.
Rxf4 {[%clk 0:01:55.2]} 21... Rxf4 {[%clk 0:01:23.9]} 22. exf4 {[%clk
0:01:54.8]} 22... Bf5 {[%clk 0:01:22.6]} 23. a4 {[%clk 0:01:43.1]} 23... e5
{[%clk 0:01:17]} 24. fxe5 {[%clk 0:01:29]} 24... Qxe5 {[%clk 0:01:16.9]} 25. Re1
{[%clk 0:01:29.2]} 25... Qg3 {[%clk 0:01:11.4]} 26. Bc6 {[%clk 0:01:27.7]} 26...
Rd8 {[%clk 0:00:56.2]} 27. Bxd5+ {[%clk 0:01:27.8]} 27... Kg7 {[%clk 0:00:56.5]}
28. Re7+ {[%clk 0:01:08.3]} 28... Kh6 {[%clk 0:00:52.3]} 29. Qd2+ {[%clk
0:01:07.4]} 29... g5 {[%clk 0:00:49.6]} 30. Qd4 {[%clk 0:00:57.9]} 30... Qd6
{[%clk 0:00:10.5]} 31. Qg7+ {[%clk 0:00:25.7]} 31... Kh5 {[%clk 0:00:10.8]} 32.
Qf7+ {[%clk 0:00:18]} 32... Bg6 {[%clk 0:00:03.2]} 33. Bf3+ {[%clk 0:00:17.6]}
33... Kh4 {[%clk 0:00:03.4]} 34. Re4+ {[%clk 0:00:17.4]} 34... Kg3 {[%clk
0:00:02.8]} 35. Rg4# {[%clk 0:00:16.8]} 1-0

[Event "Early-Titled-Tuesday-Blitz-August-29-2023"]
[Site "Chess.com"]
[Date "2023.08.29"]
[Round "7"]
[White "joppie2"]
[Black "artin10862"]
[Result "1-0"]
[WhiteElo "2946"]
[BlackElo "2821"]
[TimeControl "180+1"]
[EndTime "9:16:48 PDT"]
[Termination "joppie2 won on time"]

1. e4 {[%clk 0:03:00.8]} 1... c5 {[%clk 0:02:59.9]} 2. Nf3 {[%clk 0:03:00]} 2...
d6 {[%clk 0:03:00.6]} 3. d4 {[%clk 0:02:57]} 3... cxd4 {[%clk 0:03:01.5]} 4.
Nxd4 {[%clk 0:02:57.4]} 4... Nf6 {[%clk 0:03:02.2]} 5. Nc3 {[%clk 0:02:58]} 5...
a6 {[%clk 0:03:02.8]} 6. a3 {[%clk 0:02:57.3]} 6... e6 {[%clk 0:02:58]} 7. g4
{[%clk 0:02:56.1]} 7... b5 {[%clk 0:02:55.9]} 8. g5 {[%clk 0:02:55.7]} 8... Nfd7
{[%clk 0:02:56.6]} 9. h4 {[%clk 0:02:56.1]} 9... Bb7 {[%clk 0:02:56]} 10. Be3
{[%clk 0:02:51.9]} 10... Nb6 {[%clk 0:02:41.1]} 11. h5 {[%clk 0:02:34.8]} 11...
N8d7 {[%clk 0:02:38.1]} 12. f4 {[%clk 0:02:23]} 12... Rc8 {[%clk 0:02:36.5]} 13.
Bg2 {[%clk 0:02:19.2]} 13... Nc4 {[%clk 0:02:21.7]} 14. Bc1 {[%clk 0:02:19.5]}
14... Qb6 {[%clk 0:02:06.1]} 15. Rh3 {[%clk 0:02:05.4]} 15... e5 {[%clk
0:01:54.7]} 16. Nde2 {[%clk 0:02:05.7]} 16... exf4 {[%clk 0:01:49.7]} 17. Nxf4
{[%clk 0:01:44.4]} 17... Be7 {[%clk 0:01:37.2]} 18. Kf1 {[%clk 0:01:30.3]} 18...
Bxg5 {[%clk 0:01:33.4]} 19. Nfd5 {[%clk 0:01:27.4]} 19... Qd8 {[%clk 0:01:28]}
20. h6 {[%clk 0:01:21.3]} 20... gxh6 {[%clk 0:01:17.6]} 21. Rg3 {[%clk
0:01:12.9]} 21... Rg8 {[%clk 0:01:11.6]} 22. Bh3 {[%clk 0:01:09.6]} 22... Kf8
{[%clk 0:00:44.1]} 23. Qh5 {[%clk 0:01:09.4]} 23... Bxc1 {[%clk 0:00:32.3]} 24.
Rxg8+ {[%clk 0:01:09.4]} 24... Kxg8 {[%clk 0:00:33]} 25. Rxc1 {[%clk 0:01:09.7]}
25... Bxd5 {[%clk 0:00:18.7]} 26. Nxd5 {[%clk 0:01:09]} 26... Nf6 {[%clk
0:00:18.5]} 27. Qxh6 {[%clk 0:00:55.2]} 27... Nxd5 {[%clk 0:00:18.7]} 28. exd5
{[%clk 0:00:54.7]} 28... Rb8 {[%clk 0:00:04.1]} 29. Bf5 {[%clk 0:00:52.9]} 29...
Ne5 {[%clk 0:00:01.5]} 30. Bxh7+ {[%clk 0:00:51.5]} 30... Kh8 {[%clk 0:00:02.2]}
31. Bf5+ {[%clk 0:00:52.2]} 31... Kg8 {[%clk 0:00:02.6]} 32. Kf2 {[%clk
0:00:48.9]} 32... Qb6+ {[%clk 0:00:02.7]} 33. Kg2 {[%clk 0:00:41.4]} 33... Re8
{[%clk 0:00:03.3]} 34. Bh7+ {[%clk 0:00:31.1]} 34... Kh8 {[%clk 0:00:03.8]} 35.
Rh1 {[%clk 0:00:31.5]} 35... Ng4 {[%clk 0:00:02.6]} 36. Qf4 {[%clk 0:00:30.6]}
36... Re2+ {[%clk 0:00:02.6]} 37. Kg3 {[%clk 0:00:31]} 37... Qe3+ {[%clk
0:00:01.9]} 38. Qxe3 {[%clk 0:00:28.4]} 38... Nxe3 {[%clk 0:00:02.3]} 39. Bd3+
{[%clk 0:00:28.2]} 39... Kg7 {[%clk 0:00:03]} 40. Bxe2 {[%clk 0:00:28.9]} 1-0

[Event "Early-Titled-Tuesday-Blitz-August-29-2023"]
[Site "Chess.com"]
[Date "2023.08.29"]
[Round "7"]
[White "TigranHH"]
[Black "miraitrunks"]
[Result "0-1"]
[WhiteElo "2263"]
[BlackElo "1993"]
[TimeControl "180+1"]
[EndTime "9:16:49 PDT"]
[Termination "miraitrunks won on time"]

1. d4 {[%clk 0:02:49.4]} 1... Nf6 {[%clk 0:02:59]} 2. c4 {[%clk 0:02:48.1]} 2...
c5 {[%clk 0:02:58.6]} 3. d5 {[%clk 0:02:48]} 3... b5 {[%clk 0:02:58.3]} 4. Nf3
{[%clk 0:02:48.6]} 4... bxc4 {[%clk 0:02:57.7]} 5. Nc3 {[%clk 0:02:47.9]} 5...
d6 {[%clk 0:02:57.5]} 6. e4 {[%clk 0:02:48.8]} 6... g6 {[%clk 0:02:57.1]} 7.
Bxc4 {[%clk 0:02:48.9]} 7... Bg7 {[%clk 0:02:57.2]} 8. O-O {[%clk 0:02:49.5]}
8... O-O {[%clk 0:02:57.5]} 9. Re1 {[%clk 0:02:47.7]} 9... Nbd7 {[%clk
0:02:57.1]} 10. h3 {[%clk 0:02:41.2]} 10... Nb6 {[%clk 0:02:55.9]} 11. Bf1
{[%clk 0:02:38.7]} 11... Nfd7 {[%clk 0:02:55.5]} 12. Bg5 {[%clk 0:02:37.1]}
12... h6 {[%clk 0:02:54]} 13. Bh4 {[%clk 0:02:37.3]} 13... g5 {[%clk 0:02:52]}
14. Bg3 {[%clk 0:02:37.6]} 14... f5 {[%clk 0:02:38.6]} 15. exf5 {[%clk
0:02:35.6]} 15... Rxf5 {[%clk 0:02:39.2]} 16. Bd3 {[%clk 0:02:33.4]} 16... Bxc3
{[%clk 0:02:34.4]} 17. Bxf5 {[%clk 0:02:28.1]} 17... Bxe1 {[%clk 0:02:33.9]} 18.
Be6+ {[%clk 0:02:24.9]} 18... Kg7 {[%clk 0:02:30.5]} 19. Qxe1 {[%clk 0:02:15.9]}
19... Nf6 {[%clk 0:02:30]} 20. Rd1 {[%clk 0:01:54.3]} 20... Bxe6 {[%clk
0:02:25.4]} 21. dxe6 {[%clk 0:01:49.2]} 21... Nc4 {[%clk 0:02:17.3]} 22. Qc3
{[%clk 0:01:45.8]} 22... Nb6 {[%clk 0:02:10.4]} 23. h4 {[%clk 0:01:19.4]} 23...
g4 {[%clk 0:02:08.6]} 24. Nh2 {[%clk 0:01:04.3]} 24... Nd5 {[%clk 0:02:07.4]}
25. Qc4 {[%clk 0:01:01.1]} 25... Nb6 {[%clk 0:01:55.2]} 26. Qf4 {[%clk
0:00:58.1]} 26... Nbd5 {[%clk 0:01:48.5]} 27. Qf5 {[%clk 0:00:53.1]} 27... h5
{[%clk 0:01:25.4]} 28. Rxd5 {[%clk 0:00:48]} 28... Nxd5 {[%clk 0:01:25.9]} 29.
Qxd5 {[%clk 0:00:48.7]} 29... Qe8 {[%clk 0:01:25.9]} 30. Bf4 {[%clk 0:00:39.2]}
30... Rb8 {[%clk 0:01:24.4]} 31. Bd2 {[%clk 0:00:37.3]} 31... Qg6 {[%clk
0:01:19.5]} 32. Bc3+ {[%clk 0:00:36.6]} 32... Kg8 {[%clk 0:01:19.6]} 33. Nf1
{[%clk 0:00:33.7]} 33... Rf8 {[%clk 0:01:04]} 34. Ng3 {[%clk 0:00:30.4]} 34...
Qb1+ {[%clk 0:00:57.2]} 35. Kh2 {[%clk 0:00:29.5]} 35... Rxf2 {[%clk 0:00:56.2]}
36. Qa8+ {[%clk 0:00:25.3]} 36... Rf8 {[%clk 0:00:53]} 37. Qd5 {[%clk
0:00:23.6]} 37... Qg6 {[%clk 0:00:49]} 38. Nxh5 {[%clk 0:00:22.6]} 38... Rf5
{[%clk 0:00:39]} 39. Qa8+ {[%clk 0:00:17.7]} 39... Rf8 {[%clk 0:00:38.5]} 40.
Qd5 {[%clk 0:00:17]} 40... Rf5 {[%clk 0:00:38]} 41. Qa8+ {[%clk 0:00:11.3]}
41... Rf8 {[%clk 0:00:37.7]} 42. Nf4 {[%clk 0:00:10.8]} 42... Qf5 {[%clk
0:00:31]} 43. Qd5 {[%clk 0:00:02]} 43... Qxf4+ {[%clk 0:00:29.5]} 44. Kg1 {[%clk
0:00:01.4]} 44... g3 {[%clk 0:00:25]} 0-1

[Event "Early-Titled-Tuesday-Blitz-August-29-2023"]
[Site "Chess.com"]
[Date "2023.08.29"]
[Round "7"]
[White "GMG"]
[Black "Rsnr"]
[Result "1-0"]
[WhiteElo "2745"]
[BlackElo "2898"]
[TimeControl "180+1"]
[EndTime "9:16:52 PDT"]
[Termination "GMG won by resignation"]

1. d4 {[%clk 0:03:00.9]} 1... d5 {[%clk 0:02:58.9]} 2. Nf3 {[%clk 0:03:00.9]}
2... Nf6 {[%clk 0:02:58.4]} 3. c4 {[%clk 0:03:01.2]} 3... e6 {[%clk 0:02:58.4]}
4. Nc3 {[%clk 0:03:01.6]} 4... Bb4 {[%clk 0:02:58.6]} 5. Qa4+ {[%clk 0:02:57.5]}
5... Nc6 {[%clk 0:02:58.9]} 6. a3 {[%clk 0:02:56.1]} 6... Bxc3+ {[%clk
0:02:58.1]} 7. bxc3 {[%clk 0:02:57]} 7... Ne4 {[%clk 0:02:58.2]} 8. e3 {[%clk
0:02:55.1]} 8... Nxc3 {[%clk 0:02:56]} 9. Qc2 {[%clk 0:02:55.4]} 9... Ne4 {[%clk
0:02:56.3]} 10. Bd3 {[%clk 0:02:56]} 10... Ne7 {[%clk 0:02:44.4]} 11. Bxe4
{[%clk 0:02:49.6]} 11... dxe4 {[%clk 0:02:44.8]} 12. Qxe4 {[%clk 0:02:50.5]}
12... Rb8 {[%clk 0:02:39.1]} 13. Bb2 {[%clk 0:02:36.5]} 13... b6 {[%clk
0:02:36.6]} 14. O-O {[%clk 0:02:30.9]} 14... Bb7 {[%clk 0:02:35.7]} 15. Qg4
{[%clk 0:02:30.9]} 15... Ng6 {[%clk 0:02:31.2]} 16. d5 {[%clk 0:02:20.8]} 16...
exd5 {[%clk 0:02:27.4]} 17. Bxg7 {[%clk 0:02:17.3]} 17... Rg8 {[%clk 0:02:26.9]}
18. Bb2 {[%clk 0:02:16.2]} 18... Ne7 {[%clk 0:02:19.2]} 19. Qh5 {[%clk
0:02:10.6]} 19... dxc4 {[%clk 0:02:16.9]} 20. e4 {[%clk 0:01:50.2]} 20... Qd6
{[%clk 0:01:48]} 21. Ne5 {[%clk 0:01:45.2]} 21... Qe6 {[%clk 0:01:47.6]} 22. f3
{[%clk 0:01:39.6]} 22... Rd8 {[%clk 0:01:04.8]} 23. Rad1 {[%clk 0:01:36.6]}
23... Rxd1 {[%clk 0:01:03]} 24. Rxd1 {[%clk 0:01:37.5]} 24... h6 {[%clk
0:00:55.8]} 25. Nxf7 {[%clk 0:01:14.3]} 25... Qg6 {[%clk 0:00:56]} 26. Qxg6
{[%clk 0:01:07.6]} 26... Rxg6 {[%clk 0:00:56.6]} 27. Ne5 {[%clk 0:01:08.2]}
27... Re6 {[%clk 0:00:27.1]} 28. Nxc4 {[%clk 0:01:08.1]} 28... Rc6 {[%clk
0:00:23.5]} 29. Ne3 {[%clk 0:01:06.9]} 29... Rg6 {[%clk 0:00:12]} 30. Kf2 {[%clk
0:00:59.7]} 30... c5 {[%clk 0:00:12.6]} 31. g4 {[%clk 0:00:55.3]} 31... b5
{[%clk 0:00:10.4]} 32. h4 {[%clk 0:00:54]} 32... c4 {[%clk 0:00:08.9]} 33. Bc3
{[%clk 0:00:52.8]} 33... a6 {[%clk 0:00:07.7]} 34. h5 {[%clk 0:00:51]} 34... Rb6
{[%clk 0:00:06.4]} 35. Ba5 {[%clk 0:00:49.8]} 35... Rc6 {[%clk 0:00:06.4]} 36.
Rd8+ {[%clk 0:00:49.3]} 36... Kf7 {[%clk 0:00:06.5]} 37. Bb4 {[%clk 0:00:46.2]}
37... Bc8 {[%clk 0:00:03.4]} 38. Nd5 {[%clk 0:00:37.4]} 38... Ng8 {[%clk
0:00:01.9]} 39. Rxg8 {[%clk 0:00:34.2]} 39... Kxg8 {[%clk 0:00:01.6]} 40. Ne7+
{[%clk 0:00:34.2]} 40... Kf7 {[%clk 0:00:02.5]} 41. Nxc6 {[%clk 0:00:35.1]} 1-0